Cogmind - Beta 13 @@@ ROGUE MODE // 2024.06.11 @ 19:04:04 Player: Kinga Result: Escaped! Performance ------------- Evolutions (9) 4500 Regions Visited (11) 2200 Robots Destroyed (75) 375 Value Destroyed (1956) 1956 Prototype IDs (35) 700 Alien Tech Used (0) 0 Bonus (4628) 4628 TOTAL SCORE: 14359 Bonus ------- High Alert Combat Kills 39 Follower Combat Kills 200 Win 3000 Win Speed 1430 Friendly Fire -41 Cogmind --------- Core Integrity 1537/1600 Matter 251/300 Energy 398/400 System Corruption 0% Temperature Cool (6) Movement Flying (32) Location To Epsilon Eridani Parts ------- > --- POWER (2) -------- Micro Fission Core Quantum Reactor > --- PROPULSION (6) --- Impulse Thruster Impulse Thruster Electron Diverter > --- UTILITY (15) ----- Advanced Power Amplifier Advanced Quantum Shading Machine Structural Scanner Machine Analyzer Improved Reaction Control System Graphene Brace Hacking Suite System Shield System Shield System Shield Improved System Shield Advanced System Shield Advanced System Shield Long-range Tractor Beam > --- WEAPON (2) ------- Compact Linear Accelerator Scatter Rocket Array > --- INVENTORY (5) ---- Quantum Reactor Armored Wheel Advanced Weight Redist. System Peak State ------------ > --- POWER ------------ Micro Fission Core Quantum Reactor > --- PROPULSION ------- Impulse Thruster Impulse Thruster Impulse Thruster Diametric Drive Electron Diverter > --- UTILITY ---------- Advanced Power Amplifier Advanced Quantum Shading Machine Structural Scanner Machine Analyzer Graphene Brace Hacking Suite Hacking Suite System Shield System Shield System Shield Improved System Shield Advanced System Shield Advanced System Shield Long-range Tractor Beam > --- WEAPON ----------- Compact Linear Accelerator Scatter Rocket Array > --- INVENTORY -------- Armored Wheel Advanced Weight Redist. System [Rating: 132] Favorites ----------- Power Micro Nuclear Core Engine Ion Engine Power Core Micro Nuclear Core Reactor Quantum Reactor Propulsion Cooled VTOL Module Treads Light Treads Wheel Armored Wheel Flight Unit Cooled VTOL Module Utility Hacking Suite Device Structural Scanner Storage Small Storage Unit Processor Machine Analyzer Hackware Hacking Suite Protection Utility Shielding Weapon Scythe Energy Gun Heavy Particle Gun Energy Cannon Light EM Pulse Cannon Ballistic Gun Assault Rifle Ballistic Cannon Compact Linear Accelerator Launcher Scatter Rocket Array Slashing Weapon Scythe Build | -11 -10 -9 -9 -8 -7 -6 -5 -4 -3 -2 -1 ------- Run | Yrd Mat Mat Min Mat Fac Fac Fac Fac Res Res Acc Slots Evolved 18 | . . 2 . 2 2 2 2 2 2 2 2 Power 1 | . . . . . . . . . 1 . . Propulsion 4 | . . . . 2 . . . . 1 1 . Utility 13 | . . 2 . . 2 2 2 2 . 1 2 Weapon . | . . . . . . . . . . . . Parts Attached 134 | 6 3 20 2 13 20 19 13 11 7 18 2 Power 10 | 1 . 1 . 1 2 1 1 1 1 1 . Engine 3 | 1 . 1 . 1 . . . . . . . Core 5 | . . . . . 2 1 1 1 . . . Reactor 2 | . . . . . . . . . 1 1 . Propulsion 44 | 2 . 5 . 4 9 3 6 5 3 7 . Treads 7 | 2 . 3 . 2 . . . . . . . Leg . | . . . . . . . . . . . . Wheel 3 | . . 2 . 1 . . . . . . . Hover . | . . . . . . . . . . . . Flight 34 | . . . . 1 9 3 6 5 3 7 . Utility 52 | 1 2 7 1 2 6 11 5 5 2 8 2 Device 22 | . . 1 1 . 2 7 2 2 1 5 1 Storage 5 | 1 1 . . . 1 2 . . . . . Processor 8 | . 1 3 . 1 1 1 1 . . . . Hackware 11 | . . . . . 2 1 1 3 1 2 1 Protection 6 | . . 3 . 1 . . 1 . . 1 . Artifact . | . . . . . . . . . . . . Weapon 28 | 2 1 7 1 6 3 4 1 . 1 2 . Energy Gun 11 | . 1 2 . 5 2 1 . . . . . Energy Cannon 1 | . . . 1 . . . . . . . . Ballistic Gun 10 | 2 . 5 . 1 . 1 . . 1 . . Ballistic Cannon 1 | . . . . . . . . . . 1 . Launcher 1 | . . . . . . . . . . 1 . Special Weapon . | . . . . . . . . . . . . Impact Weapon . | . . . . . . . . . . . . Slashing Weapon 4 | . . . . . 1 2 1 . . . . Piercing Weapon . | . . . . . . . . . . . . Special Melee Weapon . | . . . . . . . . . . . . Unidentified Prototypes 12 | . . . . 3 1 2 . 1 . 5 . Parts Lost 42 | . 1 13 . 1 . 4 3 3 4 10 3 Power 4 | . . 2 . . . . . 1 1 . . Propulsion 15 | . . 4 . . . 1 1 . 1 6 2 Utility 14 | . . 4 . . . 2 2 1 1 3 1 Weapon 9 | . 1 3 . 1 . 1 . 1 1 1 . Highest Loss Streak 10 | . 1 9 . 1 . 2 2 2 2 10 3 To Critical Strikes . | . . . . . . . . . . . . Average Slot Usage (%) 94 | . 94 96 72 95 98 98 96 93 91 87 86 Engine 5 | . 14 10 . 8 . . . . . . . Core 2 | . . . . . 6 5 5 5 4 4 4 Treads 9 | . 28 20 . 16 . . . . . . . Wheel 3 | . . . 22 18 . . . . . . . Flight 11 | . . . . . 29 26 22 21 22 22 15 Device 9 | . . . 11 9 14 18 11 10 16 18 21 Storage 8 | . 14 11 11 9 7 6 5 5 3 . . Processor 13 | . 8 27 11 13 7 6 15 13 4 4 4 Hackware 9 | . . . . . 14 20 16 23 27 26 29 Protection 2 | . . 4 . 2 . . 4 5 2 2 . Energy Gun 4 | . 2 2 11 15 7 5 . . . . . Ballistic Gun 7 | . 25 18 . . . . . . 1 2 . Slashing Weapon 3 | . . . . . 6 6 10 7 2 . . Naked Turns . | . . . . . . . . . . . . Heaviest Build 58 | 14 48 52 46 58 20 20 20 18 31 45 47 Greatest Support 61 | 40 40 40 24 40 20 22 23 23 42 61 61 Greatest Overweight (x) 2 | . 1 1 1 2 . . . . . . . Average Overweight (x) . | . . 1 1 1 . . . . . . . Largest Inventory Capacity 20 | 8 20 20 20 20 20 20 8 8 8 5 5 Average Capacity 12 | 6 9 20 20 20 8 8 8 8 7 5 5 Most Carried 20 | 4 11 17 12 20 20 8 8 8 8 5 3 Average Carried 9 | 2 6 12 10 18 8 7 7 7 6 4 2 Final Capacity 20 | 8 20 20 20 20 8 8 8 8 5 5 5 Final Carried 20 | 4 11 10 12 20 7 6 8 8 5 3 3 Class Distribution -------------------- 51% | Mutant 37% | Hacker-Sprinter 8% | Wizard-Sprinter Dominant Class ---------------- Mutant | -10/Materials Mutant | -9/Materials Mutant | -9/Mines Mutant | -8/Materials Hacker-Sprinter | -7/Factory Hacker-Sprinter | -6/Factory Hacker-Sprinter | -5/Factory Hacker-Sprinter | -4/Factory Wizard-Sprinter | -3/Research Wizard-Sprinter | -2/Research Wizard-Sprinter | -1/Access Resources | -11 -10 -9 -9 -8 -7 -6 -5 -4 -3 -2 -1 ----------- Run | Yrd Mat Mat Min Mat Fac Fac Fac Fac Res Res Acc Matter Collected 2156 | 185 367 342 190 127 170 79 171 130 37 208 150 Remotely 509 | . . . . . . . 151 . . 208 150 Salvage Created 3290 | . 516 890 . 1007 97 79 396 133 37 91 44 Parts 185 | . 28 45 . 69 2 7 20 7 2 1 4 Haulers Intercepted 13 | . 2 2 . 4 . . 3 1 . 1 . Recyclers Shooed 1 | . . 1 . . . . . . . . . Parts Field Recycled . | . . . . . . . . . . . . Retrieved Matter . | . . . . . . . . . . . . Parts Self-Destructed . | . . . . . . . . . . . . Prevented . | . . . . . . . . . . . . Kills | -11 -10 -9 -9 -8 -7 -6 -5 -4 -3 -2 -1 ------- Run | Yrd Mat Mat Min Mat Fac Fac Fac Fac Res Res Acc Combat Hostiles Destroyed 39 | . 8 14 . 11 1 1 . 1 . . 3 Melee 3 | . . . . . 1 1 . 1 . . . Guns 32 | . 8 14 . 10 . . . . . . . AOE 4 | . . . . 1 . . . . . . 3 Classes Destroyed 12 | . 6 2 . 2 . 1 . . . . 1 Worker 1 | . . . . 1 . . . . . . . Builder 3 | . 1 . . 1 . 1 . . . . . Hauler 13 | . 2 2 . 4 . . 3 1 . 1 . Recycler 4 | . 1 2 . 1 . . . . . . . Operator 3 | . . . . 2 . . 1 . . . . Watcher 12 | . 1 3 . 3 1 . 2 . 1 1 . Swarmer 6 | . 2 3 . 1 . . . . . . . Cutter 3 | . . . . . . . . . . . 3 Grunt 20 | . 6 7 . 7 . . . . . . . Brawler 2 | . . 1 . 1 . . . . . . . Sentry 6 | . . 3 . 2 1 . . . . . . Programmer 2 | . . . . . . 1 . 1 . . . Best Kill Streak 5 | . 4 5 . 4 1 1 2 2 1 1 3 Combat Bots Only 4 | . 3 4 . 2 1 1 . 1 . . 3 Max Kills in Single Turn 3 | . 1 2 . 2 1 1 1 1 1 1 3 Gunslinging 1 | . . 1 . . . . . . . . . Exploded 3 | . . . . 1 . . . . . . 3 Melee 1 | . . . . . 1 1 . 1 . . . Uniques/NPCs Destroyed . | . . . . . . . . . . . . Combat | -11 -10 -9 -9 -8 -7 -6 -5 -4 -3 -2 -1 -------- Run | Yrd Mat Mat Min Mat Fac Fac Fac Fac Res Res Acc Hostile Shots Fired 625 | . 71 193 5 59 51 63 35 52 22 71 3 Missed 231 | . 19 49 2 13 30 34 15 23 10 35 1 Damage Taken 5853 | . 530 1579 26 681 187 459 411 608 310 838 224 Core 1539 | . 101 353 10 63 61 120 177 277 68 246 63 Absorbed by Shields . | . . . . . . . . . . . . Redirected to Shielding 51 | . . . . . . . 24 7 7 13 . Regen/Repaired (Parts) 97 | . . . . . . . 97 . . . . Core Remaining (%) 78 | 100 59 . 9 88 91 85 82 75 94 83 96 Volleys Fired 175 | . 51 60 1 44 . . . . 5 13 1 Largest 2 | . 2 2 2 2 . . . . 1 2 2 Hottest 120 | . 60 76 96 110 . . . . 28 98 120 Shots Fired 337 | . 102 118 2 84 . 1 . . 5 23 2 Gun 314 | . 102 118 1 77 . 1 . . 5 10 . Cannon 22 | . . . 1 7 . . . . . 13 1 Launcher 1 | . . . . . . . . . . . 1 Special . | . . . . . . . . . . . . Kinetic 228 | . 95 102 . 2 . . . . 5 23 1 Thermal 100 | . 7 16 1 75 . 1 . . . . . Explosive 1 | . . . . . . . . . . . 1 Electromagnetic 8 | . . . 1 7 . . . . . . . Robot Hit Streak 17 | . 17 15 11 12 . 4 . . 6 6 . Robot Miss Streak 11 | . 3 3 . 5 . . . . 2 2 11 Penetration Max . | . . . . . . . . . . . . Secondary Targets 13 | . 2 8 . 3 . . . . . . . Max Gunslinging Chain 1 | . 1 1 . 1 . . . . . . . Shots Hit Robots 269 | . 75 88 2 47 5 6 19 10 3 14 . Core Hits 117 | . 23 30 . 33 3 1 8 3 2 4 10 Critical Kills 1 | . 1 . . . . . . . . . . Critical Parts Destroyed . | . . . . . . . . . . . . Critical Strikes 11 | . 1 1 . 3 1 . 2 3 . . . Burn 4 | . . 1 . 3 . . . . . . . Destroy 1 | . 1 . . . . . . . . . . Sever 6 | . . . . . 1 . 2 3 . . . Melee Attacks 71 | . . . . . 6 9 37 17 2 . . Impact . | . . . . . . . . . . . . Slashing 71 | . . . . . 6 9 37 17 2 . . Piercing . | . . . . . . . . . . . . Sneak Attacks 11 | . . . . . . 2 7 2 . . . Combat Hostiles . | . . . . . . . . . . . . Follow-up Attacks 4 | . . . . . . . 4 . . . . Damage Inflicted 6013 | . 952 1319 34 1058 192 267 927 410 72 424 358 Guns 3403 | . 950 1319 12 880 . . . . 63 179 . Cannons 398 | . . . 22 131 . . . . . 245 . Explosions 405 | . . . . 47 . . . . . . 358 Melee 1792 | . . . . . 192 267 927 406 . . . Ramming 15 | . 2 . . . . . . 4 9 . . Kinetic 2491 | . 874 1122 . 8 . . . . 63 424 . Thermal 1204 | . 76 197 12 919 . . . . . . . Explosive 358 | . . . . . . . . . . . 358 Electromagnetic 153 | . . . 22 131 . . . . . . . Impact . | . . . . . . . . . . . . Slashing 1792 | . . . . . 192 267 927 406 . . . Piercing . | . . . . . . . . . . . . Highest Corruption 9 | . . 9 9 . 1 2 1 1 1 1 . Average Corruption 2 | . . 2 9 . 1 1 1 1 1 1 . Corruption Purged . | . . . . . . . . . . . . Corruption Blocked . | . . . . . . . . . . . . Effects 24 | . . 10 8 . . 4 . 1 1 . . Message Errors 4 | . . 1 1 . . . . 1 1 . . Matter Fused 7 | . . 3 4 . . . . . . . . Heat Flow Errors 4 | . . 3 1 . . . . . . . . Parts Rejected 1 | . . 1 . . . . . . . . . Data Loss (minor) 5 | . . 2 2 . . 1 . . . . . Data Loss (major) 1 | . . . . . . 1 . . . . . Misfires 1 | . . . . . . 1 . . . . . Alerts 1 | . . . . . . 1 . . . . . Overload Shots . | . . . . . . . . . . . . Overflow Damage 113 | . . . . . . 42 9 35 . . 27 Projectiles . | . . . . . . . . . . . . Explosions 27 | . . . . . . . . . . . 27 Melee 86 | . . . . . . 42 9 35 . . . Knockbacks . | . . . . . . . . . . . . Impact . | . . . . . . . . . . . . Kinetic . | . . . . . . . . . . . . Secondary . | . . . . . . . . . . . . Self-Inflicted Damage 163 | . . . . . . . . 2 4 . 157 Shots 6 | . . . . . . . . . . . 6 Rammed 3 | . 1 . . . . . . 1 1 . . Targets Rammed 3 | . 1 . . . . . . 1 1 . . Kicked . | . . . . . . . . . . . . Crushed . | . . . . . . . . . . . . Highest Temperature 276 | . 72 262 260 276 18 13 6 58 96 62 12 Average Temperature 71 | . 37 77 104 97 13 4 4 29 35 16 5 Received Heat Transfer 1389 | . 228 408 6 324 57 33 72 36 9 207 9 Effects 5 | . . . . 5 . . . . . . . Interference 5 | . . . . 5 . . . . . . . Siege Activations . | . . . . . . . . . . . . Robots Corrupted . | . . . . . . . . . . . . Combat Hostiles . | . . . . . . . . . . . . Parts Fried . | . . . . . . . . . . . . Impact Corruptions . | . . . . . . . . . . . . Robots Melted . | . . . . . . . . . . . . Combat Hostiles . | . . . . . . . . . . . . Parts Melted 11 | . . 1 . 10 . . . . . . . Heat Transferred 2707 | . 175 557 25 1950 . . . . . . . Parts Sabotaged 2 | . . . . . . 2 . . . . . Parts Stolen . | . . . . . . . . . . . . Parts Stripped . | . . . . . . . . . . . . Power Chain Reactions 1 | . . . . 1 . . . . . . . Alert | -11 -10 -9 -9 -8 -7 -6 -5 -4 -3 -2 -1 ------- Run | Yrd Mat Mat Min Mat Fac Fac Fac Fac Res Res Acc Peak Influence 580 | . 186 235 42 418 364 253 290 321 270 580 460 Initial 348 | . . 49 5 16 189 140 85 137 4 120 348 Average 164 | . 73 112 23 252 258 163 163 203 100 302 401 Maximum Alert Level 2 | . . 1 . 2 1 1 1 1 1 2 2 Low Security (%) 64 | 100 100 95 100 30 14 55 63 59 78 22 . Level 1 30 | . . 4 . 48 85 44 36 40 21 51 40 Level 2 5 | . . . . 20 . . . . . 25 59 Level 3 . | . . . . . . . . . . . . Level 4 . | . . . . . . . . . . . . Level 5 . | . . . . . . . . . . . . High Security . | . . . . . . . . . . . . Max Security . | . . . . . . . . . . . . Squads Dispatched 25 | . 2 1 . 1 2 4 8 . 3 1 3 Investigation 13 | . 2 1 . . 2 3 4 . 1 . . Extermination 3 | . . . . . . 1 1 . . 1 . Reinforcement 7 | . . . . 1 . . 3 . 2 . 1 Assault . | . . . . . . . . . . . . Garrison 2 | . . . . . . . . . . . 2 Intercept . | . . . . . . . . . . . . Searches Triggered . | . . . . . . . . . . . . Construction Impeded . | . . . . . . . . . . . . Haulers Reinforced 2 | . . . . . . . 2 . . . . Active Scanning Responses . | . . . . . . . . . . . . Cargo Convoy Interrupts 1 | . . . . . . 1 . . . . . Stealth | -11 -10 -9 -9 -8 -7 -6 -5 -4 -3 -2 -1 --------- Run | Yrd Mat Mat Min Mat Fac Fac Fac Fac Res Res Acc Distress Signals 12 | . . 1 . 2 1 1 3 1 1 2 . Communications Jammed 9 | . . . . . . . . 1 5 3 . Distress Signals 8 | . . . . . . . . . 5 3 . Times Spotted 211 | . 18 22 5 28 13 24 26 12 20 38 5 Peak Tracking Total 22 | . 5 8 4 6 9 16 11 6 9 22 4 Tactical Retreats 28 | . 1 . . . 2 2 8 6 3 6 . Traps | -11 -10 -9 -9 -8 -7 -6 -5 -4 -3 -2 -1 ------- Run | Yrd Mat Mat Min Mat Fac Fac Fac Fac Res Res Acc Traps Triggered 10 | . 1 2 . 2 2 1 . . 1 1 . Indirectly . | . . . . . . . . . . . . Trap Hack Attempts . | . . . . . . . . . . . . Triggered . | . . . . . . . . . . . . Disarmed . | . . . . . . . . . . . . Reprogrammed . | . . . . . . . . . . . . Reused . | . . . . . . . . . . . . Traps Extracted . | . . . . . . . . . . . . Installed . | . . . . . . . . . . . . Triggered . | . . . . . . . . . . . . Machines | -11 -10 -9 -9 -8 -7 -6 -5 -4 -3 -2 -1 ---------- Run | Yrd Mat Mat Min Mat Fac Fac Fac Fac Res Res Acc Machines Disabled 1 | . . 1 . . . . . . . . . Max in Single Turn 1 | . . 1 . . . . . . . . . Garrison Access 7 | . . . . . 2 1 2 1 1 . . Machines Repaired . | . . . . . . . . . . . . Machines Dismantled . | . . . . . . . . . . . . Machines Sabotaged . | . . . . . . . . . . . . Overloaded Fab Kills . | . . . . . . . . . . . . Hacking | -11 -10 -9 -9 -8 -7 -6 -5 -4 -3 -2 -1 --------- Run | Yrd Mat Mat Min Mat Fac Fac Fac Fac Res Res Acc Machines Accessed 58 | . 2 3 . 4 10 10 12 7 4 3 3 Terminals 42 | . 2 3 . 4 6 8 5 5 3 3 3 Fabricators 6 | . . . . . 1 1 4 . . . . Repair Stations 2 | . . . . . . . 1 1 . . . Recycling Units . | . . . . . . . . . . . . Scanalyzers 1 | . . . . . 1 . . . . . . Garrison Access 7 | . . . . . 2 1 2 1 1 . . Total Hacks 186 | . 7 13 . 14 30 25 29 26 17 12 13 Successful 83 | . 2 7 . 8 14 7 18 11 9 4 3 Failed 103 | . 5 6 . 6 16 18 11 15 8 8 10 Catastrophic 25 | . . 1 . 2 3 4 2 2 3 5 3 Database Lockouts . | . . . . . . . . . . . . Manual 102 | . 1 10 . 7 20 13 10 17 4 10 10 Terminals 148 | . 7 13 . 14 21 18 13 21 16 12 13 Fabricators 19 | . . . . . 4 5 10 . . . . Repair Stations 5 | . . . . . . . 4 1 . . . Recycling Units . | . . . . . . . . . . . . Scanalyzers 2 | . . . . . 2 . . . . . . Garrison Access 12 | . . . . . 3 2 2 4 1 . . Terminal Hacks 47 | . 2 4 . 4 6 4 4 9 7 4 3 Part Schematic 1 | . . . . . . . 1 . . . . Prototype ID Bank 10 | . 1 1 . 4 . 2 . 1 1 . . Open Door 1 | . . . . . . . . . . . 1 Level Access Points 5 | . . . . . 1 . . 1 1 1 1 Branch Access Points 1 | . . . . . . 1 . . . . . Emergency Access Points 1 | . . . . . . . . . . 1 . Terminal Index 2 | . . . . . . . . 1 1 . . Fabricator Index 4 | . . . . . 1 1 1 1 . . . Garrison Index 1 | . . . . . . . . . 1 . . Alert Level 2 | . . . . . 1 . . . . . 1 Unreport Threat 8 | . . . . . 1 . 2 4 1 . . Transport Status 1 | . . 1 . . . . . . . . . Recall Investigation 1 | . . . . . 1 . . . . . . Recall Extermination 1 | . . . . . . . . . 1 . . Hauler Manifests 3 | . 1 1 . . . . . 1 . . . Registered Components 2 | . . 1 . . . . . . . 1 . Zone Layout 3 | . . . . . 1 . . . 1 1 . Fabricator Hacks 11 | . . . . . 2 2 7 . . . . Load Schematic 6 | . . . . . 1 1 4 . . . . Build 5 | . . . . . 1 1 3 . . . . Repair Station Hacks 4 | . . . . . . . 4 . . . . Scan Component 2 | . . . . . . . 2 . . . . Repair 2 | . . . . . . . 2 . . . . Recycling Unit Hacks . | . . . . . . . . . . . . Scanalyzer 2 | . . . . . 2 . . . . . . Insert Component 1 | . . . . . 1 . . . . . . Analyze 1 | . . . . . 1 . . . . . . Garrison Access Hacks 7 | . . . . . 2 1 2 1 1 . . Seal Access 7 | . . . . . 2 1 2 1 1 . . Unauthorized Hacks 12 | . . 3 . 4 2 . 1 1 1 . . Terminals 12 | . . 3 . 4 2 . 1 1 1 . . Assimilate 4 | . . . . 1 1 . 1 . 1 . . Botnet 8 | . . 3 . 3 1 . . 1 . . . Fabricators . | . . . . . . . . . . . . Repair Stations . | . . . . . . . . . . . . Recycling Units . | . . . . . . . . . . . . Scanalyzers . | . . . . . . . . . . . . Garrison Access . | . . . . . . . . . . . . Data Cores Recovered 1 | . . . . . . . 1 . . . . Used 1 | . . . . . . . 1 . . . . Hacking Detections 51 | . 2 3 . 4 7 10 10 6 3 3 3 Full Trace Events 14 | . 2 1 . 1 2 3 4 . 1 . . Feedback Events 2 | . . . . . . 1 . . 1 . . Corruption 2 | . . . . . . 1 . . 1 . . Feedback Blocked . | . . . . . . . . . . . . Robot Schematics Acquired . | . . . . . . . . . . . . Robots Built . | . . . . . . . . . . . . Authchips . | . . . . . . . . . . . . Time . | . . . . . . . . . . . . Total Robot Build Rating . | . . . . . . . . . . . . Part Schematics Acquired 2 | . . . . . 1 . 1 . . . . Parts Built 4 | . . . . . 1 1 2 . . . . Authchips . | . . . . . . . . . . . . Time 458 | . . . . . 67 67 324 . . . . Total Part Build Rating 18 | . . . . . 4 4 10 . . . . Parts Repaired 2 | . . . . . . . 2 . . . . Time 70 | . . . . . . . 70 . . . . Parts Recycled . | . . . . . . . . . . . . Recycled Matter . | . . . . . . . . . . . . Retrieved Matter . | . . . . . . . . . . . . Retrieved Components . | . . . . . . . . . . . . Parts Scanalyzed 1 | . . . . . 1 . . . . . . Part Schematics Acquired 1 | . . . . . 1 . . . . . . Parts Damaged . | . . . . . . . . . . . . Bothacking | -11 -10 -9 -9 -8 -7 -6 -5 -4 -3 -2 -1 ------------ Run | Yrd Mat Mat Min Mat Fac Fac Fac Fac Res Res Acc Used RIF Installer . | . . . . . . . . . . . . Robots Hacked . | . . . . . . . . . . . . Non-combat . | . . . . . . . . . . . . Combat . | . . . . . . . . . . . . Robot Hacks Applied . | . . . . . . . . . . . . Relay Couplers Released 1 | . . . . . . 1 . . . . . Machine Destruction 1 | . . . . . . 1 . . . . . Fabnet Peak Effective % . | . . . . . . . . . . . . Robots Rewired . | . . . . . . . . . . . . Allies Hacked 1 | . . . . . . . . . 1 . . Hacks Repelled . | . . . . . . . . . . . . Allies | -11 -10 -9 -9 -8 -7 -6 -5 -4 -3 -2 -1 -------- Run | Yrd Mat Mat Min Mat Fac Fac Fac Fac Res Res Acc Total Allies 7 | . . . 3 1 1 . 1 . 1 . . Largest Group 3 | . . . 3 3 1 . 1 . 1 . . Highest-Rated Group 45 | . . . 40 42 26 . 26 . 45 . . Highest-Rated Ally 45 | . . . 16 16 26 . 26 . 45 . . Total Orders . | . . . . . . . . . . . . Ally Attacks 66 | . . . 16 50 . . . . . . . Total Damage 715 | . . . 181 534 . . . . . . . Kills 11 | . . . 2 9 . . . . . . . Allies Corrupted . | . . . . . . . . . . . . Allies Melted . | . . . . . . . . . . . . Intel | -11 -10 -9 -9 -8 -7 -6 -5 -4 -3 -2 -1 ------- Run | Yrd Mat Mat Min Mat Fac Fac Fac Fac Res Res Acc Robot Analysis Total . | . . . . . . . . . . . . Derelict Logs Recovered 1 | . . . 1 . . . . . . . . Drone Launches . | . . . . . . . . . . . . Drone Recoveries . | . . . . . . . . . . . . Exploration | -11 -10 -9 -9 -8 -7 -6 -5 -4 -3 -2 -1 ------------- Run | Yrd Mat Mat Min Mat Fac Fac Fac Fac Res Res Acc Turns Passed 4664 | 82 612 817 213 660 360 559 677 253 116 261 54 Spaces Moved 6974 | 50 264 253 174 362 1148 1184 1553 712 422 691 161 Core 9 | 9 . . . . . . . . . . . Treads 577 | 41 264 251 . 21 . . . . . . . Legs . | . . . . . . . . . . . . Wheels 517 | . . 2 174 341 . . . . . . . Hover . | . . . . . . . . . . . . Flight 5871 | . . . . . 1148 1184 1553 712 422 691 161 Fastest Speed 7 | 50 160 105 105 105 26 23 23 8 7 18 25 Average Speed 46 | 140 168 238 105 127 26 25 25 22 20 23 28 Slowest Speed 330 | 160 240 240 105 330 26 26 29 32 23 27 32 Overloaded Moves 201 | . . . . . . 58 75 12 35 21 . Propulsion Burnouts . | . . . . . . . . . . . . Robots Hopped 86 | . . . . . 23 16 19 8 9 11 . Cave-ins Triggered . | . . . . . . . . . . . . Exploration Rate (%) 29 | 4 39 34 52 35 28 31 46 26 19 28 7 Regions Visited 11 Branch Regions 1 Pre-discovered Areas . | . . . . . . . . . . . . Known Exits Taken 9 | . 1 1 1 . 1 1 1 1 1 1 . Unknown Exits Taken 2 | 1 . . . 1 . . . . . . . Scrap Searched 4 | . . . 4 . . . . . . . . Spaces Dug 21 | . . . . . 1 1 10 4 2 3 . Terrain Destroyed 34 | . . . . 3 1 1 10 4 2 7 6 Melee 18 | . . . . . 1 1 10 4 2 . . Projectile 7 | . . . . . . . . . . 7 . AOE 9 | . . . . 3 . . . . . . 6 Terrain Rammed . | . . . . . . . . . . . . Walls Destroyed . | . . . . . . . . . . . . Machines Disabled . | . . . . . . . . . . . . Actions | -11 -10 -9 -9 -8 -7 -6 -5 -4 -3 -2 -1 --------- Run | Yrd Mat Mat Min Mat Fac Fac Fac Fac Res Res Acc Total 7900 | 59 329 345 202 488 1185 1408 1765 775 432 748 164 Wait 485 | . 2 . 23 22 10 196 169 33 3 27 . Move 6795 | 49 263 252 173 361 1101 1152 1515 696 405 668 160 Hop 83 | . . . . . 23 15 18 8 8 11 . Pick Up 80 | 4 8 9 2 25 4 7 9 5 1 5 1 Fast Attach 57 | 6 1 5 1 10 5 7 5 3 1 12 1 Attach 55 | . 1 12 1 2 12 7 4 4 4 7 1 Detach 11 | . . . 1 1 3 2 2 1 . 1 . Swap 23 | . 1 3 . 1 3 5 4 4 2 . . Drop 73 | . 1 4 . 22 18 9 9 5 1 4 . Fire 175 | . 51 60 1 44 . . . . 5 13 1 Melee 62 | . . . . . 6 8 30 16 2 . . Ram . | . . . . . . . . . . . . Kick . | . . . . . . . . . . . . Crush 1 | . 1 . . . . . . . . . . Escape Stasis . | . . . . . . . . . . . . Rewire . | . . . . . . . . . . . . Trap . | . . . . . . . . . . . . Miscellaneous . | . . . . . . . . . . . . Route ------- -11/Scrapyard -10/Materials -9/Materials (discovered 2 exits: *Mat / *Min) -9/Mines -8/Materials -7/Factory (discovered 7 exits: *Fac x4 / *Sto x2 / [*Low]) -6/Factory (discovered 3 exits: *Fac / Low x2) -5/Factory (discovered 2 exits: *Fac / *Upp) -4/Factory (discovered 5 exits: *Res x4 / [*Ext]) -3/Research (discovered 3 exits: *Res x3) -2/Research (discovered 3 exits: *Acc x3) -1/Access To Epsilon Eridani History --------- Turn | Location | Event 3 | -11/Scrapyard | Discovered new exit (range 15) 83 | -11/Scrapyard | Entered Materials 312 | -10/Materials | Build established: Mutant 647 | -10/Materials | Discovered new exit (range 6) 693 | -10/Materials | Identified exit to Materials 695 | -10/Materials | Entered another Materials area 695 | -9/Materials | Evolved 2 slots: Utility x2 1005 | -9/Materials | Discovered new exit (range 16) 1040 | -9/Materials | Identified exit to Materials 1390 | -9/Materials | Discovered new exit (range 12) 1441 | -9/Materials | Identified exit to Mines 1481 | -9/Materials | Core integrity fell below 50% 1503 | -9/Materials | Core integrity fell below 20% 1512 | -9/Materials | Entered Mines 1516 | -9/Mines | Met a Derelict bent on vengeance 1533 | -9/Mines | Lost 9 parts (1p2n3u3w) 1535 | -9/Mines | Assisted by bots powering up and referring to "LRC-V3" 1718 | -9/Mines | Discovered exit to Materials (range 7) 1725 | -9/Mines | Entered Materials 1725 | -8/Materials | Accompanied by 2 allies 1725 | -8/Materials | Evolved 2 slots: Propulsion x2 2347 | -8/Materials | Discovered new exit (range 16) 2385 | -8/Materials | Entered Factory 2385 | -7/Factory | Evolved 2 slots: Utility x2 2386 | -7/Factory | Identified exit to Storage 2426 | -7/Factory | Discovered new exit (range 10) 2508 | -7/Factory | Discovered exit to Storage (range 16) 2639 | -7/Factory | Fabricated Cld. VTOL Module? 2695 | -7/Factory | Identified exit to Factory 2701 | -7/Factory | Build established: Hacker-Sprinter 2745 | -7/Factory | Entered another Factory area 2745 | -6/Factory | Evolved 2 slots: Utility x2 2962 | -6/Factory | Fabricated Cld. VTOL Module? 3251 | -6/Factory | Cargo convoy interrupted 3254 | -6/Factory | Identified exit to Lower Caves 3276 | -6/Factory | Spotted B-75 Beast 3299 | -6/Factory | Discovered new exit (range 7) 3301 | -6/Factory | Identified exit to Factory 3304 | -6/Factory | Entered another Factory area 3304 | -5/Factory | Evolved 2 slots: Utility x2 3480 | -5/Factory | Found Prototype Launcher 3482 | -5/Factory | Found Prototype Launcher 3483 | -5/Factory | Found Prototype Launcher 3585 | -5/Factory | Discovered new exit (range 12) 3604 | -5/Factory | Identified exit to Upper Caves 3680 | -5/Factory | Repaired Cld. VTOL Module 3707 | -5/Factory | Fabricated Imp. System Shield? 3716 | -5/Factory | Repaired Cld. VTOL Module 3716 | -5/Factory | Fabricated Imp. System Shield? 3971 | -5/Factory | Discovered new exit (range 11) 3980 | -5/Factory | Identified exit to Factory 3981 | -5/Factory | Entered another Factory area 3981 | -4/Factory | Evolved 2 slots: Utility x2 4105 | -4/Factory | Discovered new exit (range 11) 4219 | -4/Factory | Identified exit to Research 4234 | -4/Factory | Entered Research 4234 | -3/Research | Evolved 2 slots: Power x1, Propulsion x1 4272 | -3/Research | Spotted B-86 Titan 4306 | -3/Research | Spotted B-86 Titan 4336 | -3/Research | Identified exit to Research 4350 | -3/Research | Entered another Research area 4350 | -2/Research | Evolved 2 slots: Propulsion x1, Utility x1 4535 | -2/Research | Identified exit to Access 4535 | -2/Research | Identified Scatter Rocket Array 4548 | -2/Research | Lost 10 parts (6n3u1w) 4611 | -2/Research | Entered Access 4611 | -1/Access | Evolved 2 slots: Utility x2 4640 | -1/Access | Identified exit to Surface 4664 | -1/Access | Lost 3 parts (2n1u) 4665 | *** | Escaped! Last Messages --------------- 04637_ >> Machine Analyzer network decryption results: 04637_ Terminal x2 04638_ Acquired 150 matter. 04640_ Connecting with Terminal... >>Access(Main) Found 1 level access point to Surface: (152,116) Map updated. 04641_ Acquired Imp. Reaction Control System. 04648_ >> Machine Analyzer network decryption results: 04648_ Terminal x2 04652_ Connecting with Terminal... >>Alert(Check) Current Alert Level: 2-D 04655_ Acquired Quantum Reactor. 04659_ K-01 Serf cleans the Terminal. 04663_ Connecting with Terminal... >>Open(Door) Sealed Barrier opened. 04664_ The Access Shell folds into the floor. Map ----- +----------------------------------------------------+ | ????????????????????"F""?????????????????????????? | | ??????????????????????""?????????????????????????? | | ?????????????????????"""?????????????????????????? | | ?????????????????????""??????????????????????????? | | ?????????????????????????????????????????????????? | | ?????????????????????????????????????????????????? | | ?????????????????????????????????????????????????? | | ?????????????????????????????????????????????????? | | ?????????????????????????????????????????????????? | | ?????????????????????????????????????????????????? | | ?????????????????????????????????????????????????? | | ?????????????????????????????????????????????????? | | ?????????????????????????????????????????????????? | | ?????????????????????????????????????????????????? | | ?????????????????????????????????????????????????? | | ?????????????????????????????????????????????????? | | ?????????????????????????????????????????????????? | | ?????????????????????????????????????????????????? | | ?????????????????????????????????????????????????? | | ??????????????????##"????????"##?????????????????? | | ??????????????????##""""""""""##?????????????????? | | ??????????????????## ##?????????????????? | | ??????????????????## ##?????????????????? | | ??????????????????## ##?????????????????? | | ??????????????????## "" ##?????????????????? | | ??????????????????## "@ ##?????????????????? | | ??????????????????## ##?????????????????? | | ??????????????????## ##?????????????????? | | ?????????????""??### ###????????????????? | | ?????????????""??### ###????????????????? | | ?????????????""??## ##????????????????? | | ??????????????T??###"" ###????????????????? | | ?????????????""??###"" ###????????????????? | | ?????????????""???##"" ##?????????????????# | | ?????????????""???##T ##?????????????????# | | ??????????????????##"" ##?????########????# | | ??????????????????##"" #################### | | ??????????????????##"" ######### ####### | | ?????????????? k | | ????????????? | | ?????????????#+######################## ##### | | ????????????? #######################+####### | | ?????????????????????????????????## # | | ?????????????????????????????????## # | | ?????????????????????????????????## " # | | ?????????????????????????????????## """" # | | ?????????????????????????????????## """"" / | | ?????????????????????????????????## """"" ### | | ?????????????????????????????????## """" ### | | ?????????????????????????????????## " ##? | +----------------------------------------------------+ Best States ------------- Heat Dissipation 52 Energy Generation 44 Energy Capacity 400 Matter Stores 300 Matter Capacity 300 Sight Range 16 Terrain Scan Density 10 ECM Strength 2 Jamming Range 16 Power Amplification 30 Additional Mass Support 25 Armor Coverage 150 Utility Shielding 33 Evasion (%) 73 Targeting Accuracy 10 Recoil Reduction 2 Offensive Hacking 20 Defensive Hacking 70 Item Schematics ----------------- Cld. VTOL Module | -7/Factory | Scanalyzed Imp. System Shield | -5/Factory | Hacked Robot Schematics ------------------ None Fabricated ------------ Cld. VTOL Module | x1 | -7/Factory Cld. VTOL Module | x1 | -6/Factory Imp. System Shield | x1 | -5/Factory Imp. System Shield | x1 | -5/Factory Alien Tech Used ----------------- None Achievements -------------- None Challenges ------------ None Game ------ Seed DirtyTransdimensionalSteel Manual? 0 Play Time 01:35:08 Cumulative 57.6 hours Start 2024.06.11 @ 17:24:32 End 2024.06.11 @ 19:04:04 Sessions 1 Manual Loads 0 Difficulty Rogue Special Mode None Game No. 74 Rogue 72 Adventurer 0 Explorer 2 Win Type 0 Total 4 Types 3/0/0/1/0/0/0/0/0 Lore% 31 Gallery% 56 Achievement% 46 Wizard Run 0 Options --------- Layout 0 ASCII 0 Keyboard 0 Movement Numpad Keybinds 0 Fullscreen 2 Font 18/SmallcapsGlow Map View 76x50 Zoom Use 0% Tactical HUD 1 Map Filters NONE Filters NONE Steam 1 RUN: adf05c73-8741-463f-90a8-ad328333d8f4